bitfinex-derivatives/quotes_SOLF0:USTF0_20250312
["timestamp","ask_amount","ask_price","bid_price","bid_amount"]
[1741764100123,8.1189,123.21,123.14,50.7789]
[1741764100317,27.66262928,123.24,123.19,8.1193]
[1741764100518,27.66262928,123.24,123.14,50.7789]
[1741764100718,8.1182,123.22,123.14,50.7789]
[1741764100919,2.0787,123.28,123.19,27.66262928]
[1741764101119,2.0787,123.28,123.21,27.66262928]
[1741764101320,0.05422507,123.25,123.24,8.1165]
[1741764101520,0.05422507,123.25,123.23,0.05378616]
[1741764102127,0.05422507,123.25,123.16,2.1347]
[1741764102316,46.3,123.24,123.16,2.1347]
[1741764102522,8.1173,123.23,123.18,8.12]
[1741764102719,46.3,123.24,123.18,8.12]
[1741764103526,0.06192298,123.22,123.2,0.05675395]
[1741764108626,8.1184,123.21,123.2,0.05675395]
[1741764109226,8.1207,123.18,123.15,8.1222]
[1741764109427,27.66262928,123.23,123.14,4.3316]
[1741764109624,243.56,123.24,123.14,4.3316]
[1741764110026,8.1183,123.22,123.14,4.3316]
[1741764110228,243.56,123.24,123.14,4.3316]
[1741764110429,243.56,123.24,123.19,8.1196]
[1741764110730,0.05286915,123.2,123.14,4.3316]
[1741764110924,243.56,123.24,123.2,0.05108777]
[1741764111125,8.1195,123.2,123.16,8.1214]
[1741764111526,243.56,123.24,123.17,8.17361649]
[1741764111732,0.06235241,123.19,123.17,8.17361649]
[1741764111929,243.56,123.24,123.17,8.17361649]
[1741764112234,27.66262928,123.23,123.17,0.05291649]
[1741764112426,0.05320508,123.22,123.17,0.05291649]
[1741764112624,45.39320508,123.22,123.17,0.05291649]
[1741764112828,8.1194,123.2,123.17,0.05291649]
[1741764113022,45.39320508,123.22,123.17,0.05291649]
[1741764113228,27.66262928,123.21,123.17,0.05291649]
[1741764113929,8.1204,123.18,123.17,0.05291649]
[1741764114628,27.71607234,123.19,123.12,2.1342]
[1741764114829,27.66262928,123.19,123.12,2.1342]
[1741764115028,27.66262928,123.19,123.13,8.1232]
[1741764115533,27.66262928,123.19,123.14,8.123]
[1741764115731,0.05419658,123.17,123.12,2.1342]
[1741764115930,0.05419658,123.17,123.14,0.05498368]
[1741764116635,0.05419658,123.17,123.14,8.17788368]
[1741764116838,8.1219,123.16,123.14,0.05498368]
[1741764117142,0.05419658,123.17,123.14,0.05498368]
[1741764117436,8.17559658,123.17,123.14,8.17768368]
[1741764118037,0.05419658,123.17,123.14,8.17768368]
[1741764118339,0.05419658,123.17,123.14,0.05498368]
[1741764120228,8.1221,123.16,123.14,0.05498368]
[1741764120835,0.05419658,123.17,123.14,0.05498368]
[1741764120836,8.1224,123.15,123.14,0.05498368]
[1741764121234,0.05419658,123.17,123.07,6.1439]
[1741764121429,27.66262928,123.13,123.07,2.0569]
[1741764121630,27.66262928,123.13,123.04,59.70870871]
[1741764121832,44.42,123.14,123.04,11.02940871]
[1741764121833,27.66262928,123.07,123.04,11.02940871]
[1741764122031,27.66262928,123.05,123.04,10.47797781]
[1741764122429,27.66262928,123.05,123.03,122.36712264]
[1741764122835,27.66262928,123.05,123.03,11.1603185]
[1741764122836,8.1297,123.04,123.03,11.1603185]
[1741764123238,0.0587418,123.06,123.03,11.1603185]
[1741764123440,8.1297,123.04,123.03,11.1603185]
[1741764124051,8.1303,123.03,123.02,183.57454393]
[1741764124248,35.79292928,123.03,123.02,183.57454393]
[1741764124549,44.24,123.04,123.02,183.57454393]
[1741764125248,0.0587418,123.06,123.02,183.63147641]
[1741764125647,0.0587418,123.06,123.02,0.05693248]
[1741764126051,44.2187418,123.06,123.02,0.05693248]
[1741764126449,0.0587418,123.06,123.02,0.05693248]
[1741764127048,71.86262928,123.15,123.03,71.86262928]
[1741764127250,71.86262928,123.15,123.07,8.1272]
[1741764127452,71.86262928,123.15,123.04,4.2545]
[1741764127647,79.98562928,123.15,123.08,8.1265]
[1741764127848,71.86262928,123.15,123.04,4.2545]
[1741764128250,0.06019154,123.11,123.08,0.05181482]
[1741764128650,27.66262928,123.18,123.08,0.05181482]
[1741764128843,27.66262928,123.18,123.11,8.125]
[1741764129147,27.66262928,123.18,123.07,71.76262928]
[1741764129452,35.78322928,123.18,123.12,8.1239]
[1741764129645,35.78322928,123.18,123.07,71.76262928]
[1741764129646,27.66262928,123.18,123.07,71.76262928]
[1741764129849,0.05454522,123.16,123.14,0.05331763]
[1741764130050,0.05454522,123.16,123.07,71.76262928]
[1741764130250,44.02,123.17,123.14,0.05990801]
[1741764130451,52.1413,123.17,123.07,71.76262928]
[1741764130648,0.05309141,123.13,123.07,71.76262928]
[1741764130955,0.05309141,123.13,123.11,0.05221187]
[1741764132151,0.05309141,123.13,123.11,8.17721187]
[1741764133656,0.05309141,123.13,123.12,8.1244]
[1741764133853,43.74,123.19,123.11,0.05221187]
[1741764134057,27.66262928,123.18,123.1,2.0568]
[1741764134358,27.66262928,123.16,123.08,2.074]
[1741764134558,8.1239,123.13,123.08,2.074]
[1741764134958,0.06213655,123.12,123.09,0.0527259]
[1741764135362,0.06213655,123.12,123.09,8.1786259]
[1741764135848,8.18663655,123.12,123.09,0.0527259]
[1741764136049,0.06213655,123.12,123.09,0.0527259]
[1741764136863,0.06213655,123.12,123.09,8.1787259]
[1741764137356,8.1257,123.1,123.09,0.0527259]
[1741764138460,8.128,123.07,123.04,4.1236]
[1741764138654,27.66262928,123.1,123.04,4.1236]
[1741764139059,8.1275,123.08,123.04,12.2532]
[1741764139258,27.66262928,123.1,123.04,12.2532]
[1741764139565,0.05378758,123.08,123.06,0.05902522]
[1741764140167,8.1277,123.07,123.06,0.05902522]
[1741764140360,0.05378758,123.08,123.06,0.05902522]
[1741764140760,8.18118758,123.08,123.06,0.05902522]
[1741764140961,0.05378758,123.08,123.06,0.05902522]
[1741764141369,8.1277,123.07,123.06,0.05902522]
[1741764141572,35.79032928,123.07,123.06,0.05902522]
[1741764142268,8.1277,123.07,123.06,0.05902522]
[1741764143364,0.05378758,123.08,123.06,0.05902522]
[1741764143669,70.70262928,123.15,123.06,0.05902522]
[1741764143874,8.1261,123.1,123.05,2.0587]
[1741764144074,8.1261,123.1,123.06,8.1281]
[1741764144369,42.96,123.11,123.06,2.2021]
[1741764144564,70.62262928,123.11,123.02,43.04]
[1741764144768,0.05622297,123.1,123.07,0.05628003]
[1741764145273,8.127,123.08,123.07,0.05628003]
[1741764146367,8.127,123.08,123.07,8.003e-05]
[1741764146571,8.1297,123.04,123.03,2.2021]
[1741764146775,42.82,123.07,123.0,2.083]
[1741764147075,8.1315,123.02,123.0,2.083]
[1741764147271,27.66262928,123.05,123.0,2.083]
[1741764147471,27.66262928,123.05,122.96,46.8387]
[1741764147671,8.1327,123.0,122.96,10.1491]
[1741764147869,27.66262928,123.05,122.99,0.06072411]
[1741764148271,0.05314013,123.03,122.99,0.06072411]
[1741764148665,192.0,123.2,123.02,27.66262928]
[1741764148869,29.15627108,123.18,123.06,27.66262928]
[1741764149069,1.4936418,123.17,123.07,47.0827]
[1741764149369,20.49815308,123.18,123.08,27.66262928]
[1741764149766,0.05240098,123.14,123.12,0.0558967]
[1741764149971,20.49815308,123.18,123.12,0.0558967]
[1741764150171,20.49815308,123.18,123.13,8.1232]
[1741764150667,20.49815308,123.18,123.13,2.1303]
[1741764151063,20.49815308,123.18,123.12,0.0558967]
[1741764151064,0.06121364,123.17,123.12,0.0558967]
[1741764151470,8.1225,123.15,123.12,0.0558967]
[1741764151675,0.06121364,123.17,123.12,0.0558967]
[1741764151676,27.66262928,123.16,123.12,0.0558967]
[1741764152376,42.92121364,123.17,123.12,0.0558967]
[1741764152576,8.1234,123.14,123.12,0.0558967]
[1741764152972,8.1786644,123.14,123.12,0.0558967]
[1741764153375,8.1237,123.13,123.12,0.0558967]
[1741764154170,8.1784644,123.14,123.12,0.0558967]
[1741764154472,0.0552644,123.14,123.12,0.0558967]
[1741764154870,8.1237,123.13,123.12,0.0558967]
[1741764155676,8.1264,123.09,123.07,4.2281]
[1741764155876,27.66262928,123.12,123.07,4.2281]
[1741764156380,8.1258,123.1,123.07,4.2281]
[1741764156576,27.66262928,123.12,123.03,2.1718]
[1741764156782,0.05172252,123.09,123.06,0.05292373]
[1741764156977,8.17852252,123.09,123.06,0.05292373]
[1741764157875,0.05172252,123.09,123.06,0.05292373]
[1741764159179,8.1277,123.07,123.06,0.05292373]
[1741764159581,0.05172252,123.09,123.06,0.05292373]
[1741764160781,0.05172252,123.09,123.06,8.18112373]
[1741764161372,0.05172252,123.09,123.06,0.05292373]
[1741764161571,27.7143518,123.09,123.06,0.05292373]
[1741764163878,0.05172252,123.09,123.06,0.05292373]
[1741764164181,8.1277,123.07,123.06,0.05292373]
[1741764164380,49.9477,123.07,123.06,0.05292373]
[1741764175991,49.9477,123.07,123.06,2.373e-05]
[1741764181301,293.9077,123.07,123.06,2.373e-05]
[1741764184694,313.44262928,123.07,123.0,4.3578]
[1741764184894,8.1313,123.02,123.0,4.3578]
[1741764185303,313.44262928,123.07,123.0,4.3578]
[1741764185505,8.1307,123.03,123.0,4.3578]
[1741764186103,0.05538846,123.03,123.0,12.54802116]
[1741764187399,285.78,123.07,123.01,8.1313]
[1741764187600,39.98,123.06,123.0,4.3578]
[1741764188001,39.98,123.06,123.0,12.4899]
[1741764188207,39.98,123.06,123.0,4.3578]
[1741764188500,27.66262928,123.05,123.0,4.3578]
[1741764188708,0.05390119,123.04,123.02,0.05627347]
[1741764189002,8.1303,123.03,123.02,0.05627347]
[1741764189809,35.79292928,123.03,123.02,7.347e-05]
[1741764190007,27.66262928,123.03,122.95,2.1415]
[1741764190200,8.134,122.98,122.95,2.1415]
[1741764190602,8.1333,122.99,122.95,2.1415]
[1741764190802,39.8,123.0,122.95,2.1415]
[1741764191006,39.8,123.0,122.95,10.2771]
[1741764191302,8.18430675,122.99,122.96,0.05339159]
[1741764192811,0.05110675,122.99,122.96,2.21039159]
[1741764193006,0.05110675,122.99,122.97,8.1342]
[1741764193411,0.05110675,122.99,122.96,2.21039159]
[1741764193811,39.8,123.0,122.96,2.21039159]
[1741764195013,0.05674527,122.99,122.96,2.21039159]
[1741764195308,0.05674527,122.99,122.96,10.34509159]
[1741764195614,0.05674527,122.99,122.96,2.21039159]
[1741764198306,0.05674527,122.99,122.96,0.05339159]
[1741764198715,8.1343,122.97,122.96,0.05339159]
[1741764200212,8.1343,122.97,122.96,9.159e-05]
[1741764200512,67.01884736,122.98,122.91,46.51275671]
[1741764200816,67.01884736,122.98,122.91,1.9929]
[1741764200817,27.77884736,122.96,122.91,1.9929]
[1741764201316,27.77884736,122.96,122.88,2.119]
[1741764201514,0.06121231,122.95,122.92,0.05738452]
[1741764201717,39.22,122.94,122.92,0.05738452]
[1741764201913,8.1369,122.93,122.92,0.05738452]
[1741764204006,8.1369,122.93,122.92,8.452e-05]
[1741764204212,252.2169,122.93,122.92,8.452e-05]
[1741764204420,8.1406,122.88,122.85,2.0808]
[1741764204615,39.08,122.9,122.85,2.0808]
[1741764204817,8.14,122.89,122.85,2.0808]
[1741764205015,39.08,122.9,122.85,2.0808]
[1741764205219,39.12,122.92,122.85,2.0808]
[1741764205418,0.05190145,122.9,122.88,0.05190306]
[1741764207813,8.19120145,122.9,122.88,0.05190306]
[1741764208720,8.19130145,122.9,122.88,0.05190306]
[1741764208923,0.05190145,122.9,122.88,0.05190306]
[1741764209511,8.1396,122.89,122.88,0.05190306]
[1741764211523,8.1396,122.89,122.88,3.06e-06]
[1741764211922,8.1434,122.84,122.8,2.0831]
[1741764212119,38.74,122.86,122.8,2.0831]
[1741764212519,8.144,122.83,122.8,2.0831]
[1741764212824,38.74,122.86,122.8,10.2283]
[1741764213022,0.0538019,122.83,122.8,10.28622685]
[1741764213325,8.1978019,122.83,122.8,2.14102685]
[1741764213818,0.0538019,122.83,122.8,10.28652685]
[1741764214017,0.0538019,122.83,122.8,2.14102685]
[1741764216120,0.0538019,122.83,122.8,10.28612685]
[1741764217422,0.0538019,122.83,122.8,2.14102685]
[1741764217627,46.8818,122.86,122.82,8.1442]
[1741764217829,46.8818,122.86,122.83,2.1551]
[1741764218725,38.79853399,122.86,122.83,2.20735762]
[1741764218926,0.05853399,122.86,122.83,2.20735762]
[1741764219326,0.05853399,122.86,122.83,10.35045762]
[1741764220026,38.64,122.88,122.84,8.1428]
[1741764220224,38.6,122.9,122.84,8.1428]
[1741764220423,38.6,122.9,122.85,2.1625]
[1741764220829,8.14,122.89,122.85,2.1625]
[1741764221130,0.05257204,122.88,122.86,0.05970508]
[1741764221729,46.6785,122.91,122.86,8.20100508]
[1741764221928,8.1385,122.91,122.86,8.20100508]
[1741764222225,244.08,122.93,122.86,8.20100508]
[1741764222226,8.1393,122.9,122.86,0.05970508]
[1741764222429,38.46,122.92,122.86,0.05970508]
[1741764222627,282.54,122.93,122.86,0.05970508]
[1741764222828,8.19865534,122.9,122.86,8.20100508]
[1741764223128,0.05975534,122.9,122.86,8.20100508]
[1741764224331,8.19885534,122.9,122.86,8.20100508]
[1741764225532,0.05975534,122.9,122.86,8.20100508]
[1741764225729,8.1405,122.88,122.86,0.05970508]
[1741764225930,0.05975534,122.9,122.86,0.05970508]
[1741764226225,8.1409,122.87,122.86,0.05970508]
[1741764230929,8.1399,122.89,122.86,0.05970508]
[1741764231130,0.05975534,122.9,122.86,0.05970508]
[1741764231535,8.1397,122.89,122.86,0.05970508]
[1741764232740,8.1404,122.88,122.86,0.05970508]
[1741764233436,8.1399,122.89,122.86,0.05970508]
[1741764235844,0.05975534,122.9,122.86,0.05970508]
[1741764236140,8.19905534,122.9,122.86,8.20120508]
[1741764236738,0.05975534,122.9,122.88,8.1399]
[1741764237737,0.05975534,122.9,122.89,8.1396]
[1741764237938,244.08,122.93,122.87,29.89550041]
[1741764238242,8.1366,122.94,122.87,29.89550041]
[1741764238444,8.1366,122.94,122.89,8.1395]
[1741764238644,8.1366,122.94,122.87,29.89550041]
[1741764238840,8.1366,122.94,122.9,8.1386]
[1741764239144,8.19830629,122.93,122.91,0.05893802]
[1741764239344,0.06130629,122.93,122.91,0.05893802]
[1741764240245,8.1376,122.92,122.91,0.05893802]
[1741764242645,27.8796067,122.93,122.84,12.3326]
[1741764242845,8.1406,122.88,122.84,12.3326]
[1741764243242,8.1399,122.89,122.85,8.1422]
[1741764243744,8.1399,122.89,122.86,0.05506337]
[1741764243950,0.05652304,122.88,122.86,8.19626337]
[1741764244548,0.05652304,122.88,122.86,8.19666337]
[1741764244747,0.05652304,122.88,122.86,0.05506337]
[1741764245745,0.05652304,122.88,122.86,8.19656337]
[1741764247848,0.05652304,122.88,122.86,0.05506337]
[1741764248049,8.19722304,122.88,122.86,0.05506337]
[1741764254364,0.05652304,122.88,122.86,0.05506337]
[1741764255964,17.44661968,122.88,122.86,0.05506337]
[1741764256165,8.1409,122.87,122.86,6.337e-05]
[1741764256362,244.26,122.87,122.81,44.51985671]
[1741764256565,17.39009664,122.84,122.81,44.51985671]
[1741764257364,17.39009664,122.82,122.81,5.671e-05]
[1741764257561,17.39009664,122.82,122.8,225.27081801]
[1741764257562,54.09009664,122.82,122.8,182.86397472]
[1741764257768,54.09009664,122.82,122.8,141.67147472]
[1741764258469,71.48019328,122.82,122.79,131.56392019]
[1741764258670,17.39009664,122.8,122.79,25.63395718]
[1741764258970,269.79569664,122.8,122.79,25.63395718]
[1741764260674,269.79569664,122.8,122.79,25.5752068]
[1741764261278,8.1462,122.79,122.78,283.99773358]
[1741764261678,244.26,122.8,122.78,283.99773358]
[1741764262378,244.26,122.8,122.78,284.05014068]
[1741764263078,252.4056,122.8,122.78,284.05014068]
[1741764263278,244.26,122.8,122.78,0.0524071]
[1741764264578,44.91871717,122.81,122.78,0.0524071]
[1741764264579,0.05361717,122.81,122.78,0.0524071]
[1741764265182,0.05361717,122.81,122.78,4.4470071]
[1741764265382,0.05361717,122.81,122.78,6.5347071]
[1741764265775,0.05361717,122.81,122.79,8.1456]
[1741764266279,45.17547618,122.81,122.78,6.5347071]
[1741764266585,45.17547618,122.81,122.78,0.0524071]
[1741764266882,8.1462,122.79,122.78,0.0524071]
[1741764268982,54.11009664,122.8,122.73,2.196]
[1741764269182,8.1492,122.75,122.73,2.196]
[1741764270189,8.20362377,122.75,122.73,2.25151133]
[1741764270386,8.1495,122.74,122.73,0.05551133]
[1741764271382,8.1495,122.74,122.73,1.133e-05]
[1741764272189,25.53959664,122.74,122.73,1.133e-05]
[1741764273387,8.1521,122.71,122.67,4.3372]
[1741764273787,36.74,122.72,122.67,21.72729664]
[1741764274192,36.74,122.72,122.67,29.88139664]
[1741764274393,0.06114713,122.71,122.68,0.05666737]
[1741764276792,0.06114713,122.71,122.68,8.20976737]
[1741764277195,0.06114713,122.71,122.68,0.05666737]
[1741764277694,0.06114713,122.71,122.69,8.1528]
[1741764277897,0.06114713,122.71,122.68,0.05666737]
[1741764278291,0.06114713,122.71,122.68,8.20976737]
[1741764279091,0.06114713,122.71,122.69,8.1528]
[1741764279296,0.06114713,122.71,122.68,0.05666737]
[1741764279694,0.06114713,122.71,122.69,8.1524]
[1741764279893,0.06114713,122.71,122.68,0.05666737]
[1741764280294,0.06114713,122.71,122.68,8.20986737]
[1741764280695,36.74,122.75,122.69,17.39009664]
[1741764280895,36.74,122.77,122.69,54.13009664]
[1741764281189,8.1493,122.75,122.7,8.1522]
[1741764281592,8.1479,122.77,122.72,8.1508]
[1741764281794,8.1479,122.77,122.73,19.49749664]
[1741764282096,8.20277396,122.76,122.73,21.65152967]
[1741764282296,8.20277396,122.76,122.73,4.26143303]
[1741764282494,0.05447396,122.76,122.73,4.26143303]
[1741764283797,8.20317396,122.76,122.73,4.26143303]
[1741764283999,0.05447396,122.76,122.73,4.26143303]
[1741764284599,8.149,122.75,122.73,4.26143303]
[1741764285090,8.149,122.75,122.73,2.16293303]
[1741764285299,0.05447396,122.76,122.73,0.05553303]
[1741764285300,8.1495,122.74,122.73,0.05553303]
[1741764286403,44.8895,122.74,122.73,0.05553303]
[1741764292405,44.8895,122.74,122.73,3.303e-05]
[1741764292606,62.27959664,122.74,122.73,3.303e-05]
[1741764293406,8.1532,122.69,122.67,1.9972]
[1741764293901,8.1525,122.7,122.67,1.9972]
[1741764294107,54.13009664,122.74,122.67,1.9972]
[1741764294404,54.13009664,122.74,122.69,0.05206133]
[1741764294405,0.05928663,122.72,122.69,0.05206133]
[1741764295906,8.1522,122.7,122.69,0.05206133]
[1741764296113,0.05928663,122.72,122.69,0.05206133]
[1741764296313,8.1519,122.71,122.69,0.05206133]
[1741764296708,11.35040502,122.72,122.69,0.05206133]
[1741764297314,19.50160502,122.72,122.69,0.05206133]
[1741764297514,11.35040502,122.72,122.69,0.05206133]
[1741764297910,8.1517,122.71,122.69,0.05206133]
[1741764298109,28.74050166,122.72,122.69,0.05206133]
[1741764298614,8.1522,122.7,122.69,0.05206133]
[1741764300516,8.1517,122.71,122.69,0.05206133]
[1741764301010,8.1522,122.7,122.69,0.05206133]
[1741764303917,8.1522,122.7,122.69,6.133e-05]
[1741764303918,87.2144506,122.7,122.69,6.133e-05]
[1741764304122,8.156,122.65,122.61,68.45659664]
[1741764304610,79.0622506,122.7,122.61,60.29899664]
[1741764304809,61.67215396,122.7,122.63,17.39009664]
[1741764305017,8.154,122.68,122.63,17.39009664]
[1741764305218,8.20829997,122.68,122.65,0.0603848]
[1741764306121,0.05429997,122.68,122.65,17.45048144]
[1741764306321,14.98675396,122.7,122.67,17.39009664]
[1741764306512,5.02165396,122.7,122.69,17.39009664]
[1741764306714,5.02165396,122.7,122.68,17.39009664]
[1741764306922,45.16447358,122.7,122.68,17.39009664]
[1741764307318,45.16447358,122.7,122.69,8.1529]
[1741764307521,35.25146403,122.7,122.69,8.1529]
[1741764307724,31.99876403,122.7,122.69,8.1529]
[1741764309526,0.05149045,122.7,122.69,8.1529]
[1741764309725,11.29111839,122.74,122.68,17.44558655]
[1741764310023,11.29111839,122.74,122.72,17.39009664]
[1741764310328,11.29111839,122.74,122.73,36.72]
[1741764311026,11.29111839,122.74,122.73,44.8702]
[1741764311623,11.29111839,122.74,122.73,36.72]
[1741764311931,0.0624446,122.75,122.73,36.72]
[1741764313025,0.0624446,122.75,122.73,44.87]
[1741764313224,0.0624446,122.75,122.73,36.72]
[1741764315332,0.0624446,122.75,122.74,17.39009664]
[1741764315532,11.29111839,122.8,122.76,8.1478]
[1741764315733,11.29111839,122.8,122.76,17.39009664]
[1741764316033,11.29111839,122.8,122.77,36.72]
[1741764316234,18.75192153,122.81,122.78,17.39009664]
[1741764316732,18.80872074,122.81,122.78,17.44646328]
[1741764316933,15.55262074,122.81,122.8,17.39009664]
[1741764317227,135.51420751,122.82,122.81,8.1449]
[1741764317426,135.51420751,122.82,122.81,44.8449]
[1741764317634,227.08167738,122.83,122.81,36.7]
[1741764317833,227.08167738,122.83,122.82,25.53429664]
[1741764318022,227.08167738,122.83,122.82,17.39009664]
[1741764318221,227.08167738,122.83,122.81,36.7]
[1741764318427,227.08167738,122.83,122.81,36.75386288]
[1741764320135,0.05507802,122.84,122.81,36.75386288]
[1741764320333,0.05507802,122.84,122.81,0.05386288]
[1741764320532,8.1442,122.82,122.81,0.05386288]
[1741764320933,0.05507802,122.84,122.81,0.05386288]
[1741764321133,8.1437,122.83,122.81,0.05386288]
[1741764321333,0.05507802,122.84,122.81,0.05386288]
[1741764321836,2.18897802,122.84,122.81,0.05386288]
[1741764322333,0.05507802,122.84,122.81,0.05386288]
[1741764323138,8.1441,122.83,122.81,0.05386288]
[1741764323335,0.05507802,122.84,122.81,0.05386288]
[1741764323636,10.3426,122.83,122.81,0.05386288]
[1741764323939,2.1985,122.83,122.74,27.84473551]
[1741764324141,2.1059,122.82,122.74,64.52473551]
[1741764324330,8.1458,122.8,122.74,64.52473551]
[1741764324535,2.1059,122.82,122.74,64.52473551]
[1741764324734,8.145,122.81,122.76,8.1478]
[1741764324940,0.06016404,122.8,122.77,0.05996671]
[1741764325736,0.06016404,122.8,122.77,8.20706671]
[1741764325936,0.06016404,122.8,122.77,0.05996671]
[1741764326337,0.06016404,122.8,122.78,8.1464]
[1741764326833,8.1462,122.79,122.78,36.68]
[1741764327040,0.06016404,122.8,122.78,36.68]
[1741764328138,8.20616404,122.8,122.78,36.68]
[1741764329143,8.1462,122.79,122.78,36.68]
[1741764329345,8.1462,122.79,122.77,0.05996671]
[1741764331038,8.1469,122.78,122.77,0.05996671]
[1741764331640,8.1497,122.74,122.68,27.84473551]
[1741764332042,27.84473551,122.78,122.68,44.8329]
[1741764332345,8.1507,122.73,122.68,44.8329]
[1741764332734,0.05624136,122.72,122.69,0.05479268]
[1741764332942,0.05624136,122.72,122.65,36.66]
[1741764333139,66.60803551,122.76,122.69,0.05571429]
[1741764333344,0.05256969,122.7,122.69,0.05571429]
[1741764333642,0.05516507,122.71,122.69,0.05571429]
[1741764333844,8.1522,122.7,122.69,0.05571429]
[1741764335043,0.0620129,122.71,122.62,36.68]
[1741764335238,2.2031,122.69,122.62,36.68]
[1741764335642,36.68,122.68,122.62,36.68]
[1741764335951,36.68,122.68,122.58,217.84473551]
[1741764336144,8.1568,122.63,122.62,0.06160789]
[1741764336445,0.06211532,122.64,122.62,0.06160789]
[1741764336646,8.21841532,122.64,122.62,0.06160789]
[1741764336846,0.06211532,122.64,122.62,0.06160789]
[1741764338444,8.21861532,122.64,122.62,0.06160789]
[1741764338650,0.06211532,122.64,122.62,0.06160789]
[1741764340850,0.06211532,122.64,122.62,8.21860789]
[1741764341050,0.06211532,122.64,122.62,0.06160789]
[1741764341652,0.06211532,122.64,122.62,8.21870789]
[1741764343050,0.06211532,122.64,122.62,44.89870789]
[1741764343449,0.06211532,122.64,122.63,8.1568]
[1741764344747,2.2031,122.69,122.63,2.44]
[1741764345050,2.2031,122.69,122.65,8.1552]
[1741764345349,10.3564,122.69,122.62,64.52473551]
[1741764346053,0.0544717,122.67,122.64,0.05945811]
[1741764346352,0.0544717,122.67,122.65,8.1551]
[1741764347453,0.0544717,122.67,122.66,8.1549]
[1741764347653,0.0544717,122.67,122.64,0.05945811]
[1741764348042,0.0544717,122.67,122.65,8.1551]
[1741764348246,0.0544717,122.67,122.64,0.05945811]
[1741764349547,8.2087717,122.67,122.64,0.05945811]
[1741764349753,0.0544717,122.67,122.64,0.05945811]
[1741764350354,8.2086717,122.67,122.64,0.05945811]
[1741764350561,0.0544717,122.67,122.64,0.05945811]
[1741764351051,0.0544717,122.67,122.64,8.21555811]
[1741764351654,0.0544717,122.67,122.65,8.1554]
[1741764352865,0.0544717,122.67,122.66,8.1549]
[1741764353656,0.0544717,122.67,122.65,8.1552]
[1741764354155,0.0544717,122.67,122.64,0.05945811]
[1741764354355,0.0544717,122.67,122.64,8.21565811]
[1741764355061,0.0544717,122.67,122.65,8.1555]
[1741764355261,0.0544717,122.67,122.64,0.05945811]
[1741764356068,0.0544717,122.67,122.64,8.21525811]
[1741764356368,0.0544717,122.67,122.64,0.05945811]
[1741764356769,8.2086717,122.67,122.64,0.05945811]
[1741764357267,8.1555,122.65,122.64,0.05945811]
[1741764357869,0.0544717,122.67,122.6,44.8185]
[1741764358065,2.1109,122.66,122.59,54.10807121]
[1741764358972,0.05870641,122.64,122.61,8.21119343]
[1741764359366,0.05870641,122.64,122.61,0.05339343]
[1741764359570,8.1575,122.62,122.61,0.05339343]
[1741764360873,8.1572,122.63,122.61,0.05339343]
[1741764361069,0.05870641,122.64,122.61,0.05339343]
[1741764361272,17.50677762,122.64,122.56,36.66]
[1741764361568,8.1592,122.6,122.56,36.66]
[1741764362266,8.1595,122.59,122.54,252.27077121]
[1741764362463,0.05973666,122.59,122.57,0.05580355]
[1741764363572,8.1616,122.56,122.52,54.10807121]
[1741764364067,8.1622,122.55,122.5,70.10333198]
[1741764364571,8.1622,122.55,122.5,106.76333198]
[1741764364777,0.05898038,122.54,122.51,8.1648]
[1741764365774,0.05898038,122.54,122.5,98.59813198]
[1741764365969,0.05898038,122.54,122.52,8.1641]
[1741764366169,0.05898038,122.54,122.5,54.10807121]
[1741764366371,0.05898038,122.54,122.5,36.66]
[1741764366571,0.05898038,122.54,122.51,8.1646]
[1741764366966,0.05898038,122.54,122.52,8.1641]
[1741764367680,0.05898038,122.54,122.53,8.1635]
[1741764368381,0.05898038,122.54,122.52,8.1639]
[1741764369073,0.05898038,122.54,122.5,36.66]
[1741764370875,0.05898038,122.54,122.52,8.164]
[1741764371185,0.05898038,122.54,122.51,8.1646]
[1741764371877,0.05898038,122.54,122.46,27.9767127]
[1741764372083,30.1336127,122.56,122.46,64.6567127]
[1741764372384,8.1659,122.5,122.45,8.1686]
[1741764372584,0.06038261,122.51,122.44,44.49006077]
[1741764372885,38.8377,122.5,122.44,44.49006077]
[1741764373087,8.2214074,122.49,122.44,52.65936077]
[1741764373279,0.0548074,122.49,122.44,52.65936077]
[1741764373680,0.0548074,122.49,122.45,8.1688]
[1741764373885,6.29528924,122.48,122.45,8.1688]
[1741764374880,6.29528924,122.47,122.45,8.1688]
[1741764375081,6.29528924,122.47,122.46,8.1682]